[Event "*** Titled Tuesday Blitz"]
[Site "Chess.com"]
[Date "2021.04.27"]
[Round "5"]
[White "PavelChernomordik"]
[Black "TengisChess"]
[Result "1-0"]
[WhiteElo "2393"]
[BlackElo "2542"]
[TimeControl "180+1"]
[EndTime "10:57:10 PDT"]
[Termination "PavelChernomordik won by checkmate"]

1. e4 {[%clk 0:03:00.9]} 1... d6 {[%clk 0:02:59.2]} 2. d4 {[%clk 0:03:00.1]}
2... Nf6 {[%clk 0:02:58.7]} 3. Nc3 {[%clk 0:02:59.7]} 3... g6 {[%clk 0:02:59.2]}
4. Bg5 {[%clk 0:02:59]} 4... Bg7 {[%clk 0:02:59.4]} 5. Qd2 {[%clk 0:02:58.3]}
5... Nc6 {[%clk 0:02:55.2]} 6. f4 {[%clk 0:02:57.2]} 6... O-O {[%clk 0:02:49]}
7. Nf3 {[%clk 0:02:55.8]} 7... Bg4 {[%clk 0:02:47.6]} 8. O-O-O {[%clk 0:02:48]}
8... a6 {[%clk 0:02:39.8]} 9. h3 {[%clk 0:02:42.9]} 9... Bxf3 {[%clk 0:02:39.4]}
10. gxf3 {[%clk 0:02:42.6]} 10... b5 {[%clk 0:02:39.9]} 11. f5 {[%clk
0:02:25.9]} 11... b4 {[%clk 0:02:38]} 12. Ne2 {[%clk 0:02:24.2]} 12... e5 {[%clk
0:02:31.6]} 13. d5 {[%clk 0:02:11.3]} 13... Na7 {[%clk 0:02:27.3]} 14. Ng3
{[%clk 0:01:58.9]} 14... Qd7 {[%clk 0:02:23.3]} 15. h4 {[%clk 0:01:56]} 15...
Qa4 {[%clk 0:02:21.5]} 16. Kb1 {[%clk 0:01:55.6]} 16... Nb5 {[%clk 0:02:21.5]}
17. Bc4 {[%clk 0:01:50.3]} 17... Rab8 {[%clk 0:02:11.5]} 18. Bb3 {[%clk
0:01:48.5]} 18... Qa5 {[%clk 0:02:11.3]} 19. h5 {[%clk 0:01:45.6]} 19... h6
{[%clk 0:02:04.1]} 20. Bxh6 {[%clk 0:01:41.9]} 20... Nc3+ {[%clk 0:02:03.4]} 21.
bxc3 {[%clk 0:01:34.2]} 21... bxc3 {[%clk 0:02:03.1]} 22. Qc1 {[%clk 0:01:33.5]}
22... Rxb3+ {[%clk 0:01:03]} 23. axb3 {[%clk 0:01:12.5]} 23... Rb8 {[%clk
0:00:57.8]} 24. Bxg7 {[%clk 0:01:05]} 24... Qa4 {[%clk 0:00:56]} 25. Rd2 {[%clk
0:00:41.7]} 25... cxd2 {[%clk 0:00:51.9]} 26. Qxd2 {[%clk 0:00:36.5]} 26...
Rxb3+ {[%clk 0:00:49.7]} 27. cxb3 {[%clk 0:00:35.8]} 27... Qxb3+ {[%clk
0:00:49.9]} 28. Qb2 {[%clk 0:00:30.6]} 28... Qd3+ {[%clk 0:00:43.2]} 29. Qc2
{[%clk 0:00:30]} 29... Qb5+ {[%clk 0:00:37.1]} 30. Kc1 {[%clk 0:00:29.1]} 30...
Kxg7 {[%clk 0:00:33]} 31. hxg6 {[%clk 0:00:27.2]} 31... Qb6 {[%clk 0:00:26.1]}
32. gxf7 {[%clk 0:00:20.8]} 32... Kxf7 {[%clk 0:00:19.5]} 33. Nf1 {[%clk
0:00:16.1]} 33... a5 {[%clk 0:00:18.1]} 34. Nd2 {[%clk 0:00:14.6]} 34... a4
{[%clk 0:00:18.4]} 35. Nc4 {[%clk 0:00:14.2]} 35... Qd4 {[%clk 0:00:17.7]} 36.
Kb1 {[%clk 0:00:14]} 36... a3 {[%clk 0:00:17.3]} 37. Nxa3 {[%clk 0:00:13.3]}
37... Qb4+ {[%clk 0:00:17]} 38. Qb2 {[%clk 0:00:13]} 38... Qc5 {[%clk
0:00:12.3]} 39. Rc1 {[%clk 0:00:12.3]} 39... Qe3 {[%clk 0:00:12]} 40. Rxc7+
{[%clk 0:00:11.3]} 40... Kf8 {[%clk 0:00:12.5]} 41. Qb8+ {[%clk 0:00:10.4]}
41... Ne8 {[%clk 0:00:12.8]} 42. Rc8 {[%clk 0:00:09.9]} 42... Qd3+ {[%clk
0:00:12.6]} 43. Nc2 {[%clk 0:00:09.6]} 43... Qf1+ {[%clk 0:00:12]} 44. Kb2
{[%clk 0:00:09.2]} 44... Kg7 {[%clk 0:00:12.4]} 45. Rxe8 {[%clk 0:00:08.6]}
45... Kh6 {[%clk 0:00:13.3]} 46. Rh8+ {[%clk 0:00:07.9]} 46... Kg5 {[%clk
0:00:13.8]} 47. Qd8+ {[%clk 0:00:06.9]} 47... Kf4 {[%clk 0:00:14.7]} 48. Qh4+
{[%clk 0:00:06]} 48... Kxf3 {[%clk 0:00:15.1]} 49. Qh3+ {[%clk 0:00:06.1]} 49...
Qxh3 {[%clk 0:00:14.8]} 50. Rxh3+ {[%clk 0:00:06.4]} 50... Kxe4 {[%clk
0:00:14.7]} 51. f6 {[%clk 0:00:07.3]} 51... Kxd5 {[%clk 0:00:15.2]} 52. f7
{[%clk 0:00:08]} 52... Kc6 {[%clk 0:00:16.1]} 53. f8=Q {[%clk 0:00:08.3]} 53...
d5 {[%clk 0:00:17]} 54. Rh6+ {[%clk 0:00:08.2]} 54... Kb5 {[%clk 0:00:17.2]} 55.
Qd6 {[%clk 0:00:08.3]} 55... Kc4 {[%clk 0:00:17.2]} 56. Qc6+ {[%clk 0:00:08.3]}
56... Kd3 {[%clk 0:00:16.6]} 57. Qxd5+ {[%clk 0:00:08.5]} 57... Ke2 {[%clk
0:00:17]} 58. Rh2+ {[%clk 0:00:08.7]} 58... Kf1 {[%clk 0:00:15.4]} 59. Qh1#
{[%clk 0:00:09.1]} 1-0

[Event "*** Titled Tuesday Blitz"]
[Site "Chess.com"]
[Date "2021.04.27"]
[Round "5"]
[White "Gerodot71"]
[Black "Novoselski"]
[Result "1-0"]
[WhiteElo "2573"]
[BlackElo "2405"]
[TimeControl "180+1"]
[EndTime "10:57:11 PDT"]
[Termination "Gerodot71 won on time"]

1. d4 {[%clk 0:03:00.9]} 1... g6 {[%clk 0:02:58.6]} 2. e4 {[%clk 0:03:00.3]}
2... Bg7 {[%clk 0:02:58.3]} 3. Nc3 {[%clk 0:03:00.7]} 3... c6 {[%clk 0:02:58.6]}
4. Be3 {[%clk 0:02:58.3]} 4... d5 {[%clk 0:02:57.7]} 5. f3 {[%clk 0:02:58.9]}
5... dxe4 {[%clk 0:02:36.8]} 6. fxe4 {[%clk 0:02:59.8]} 6... Nf6 {[%clk
0:02:36.1]} 7. Nf3 {[%clk 0:02:39.3]} 7... Ng4 {[%clk 0:02:22]} 8. Bf4 {[%clk
0:02:33.1]} 8... Qb6 {[%clk 0:02:16.1]} 9. a3 {[%clk 0:02:25.4]} 9... e5 {[%clk
0:02:05.2]} 10. Bg5 {[%clk 0:01:43.2]} 10... exd4 {[%clk 0:02:00.3]} 11. h3
{[%clk 0:01:42.9]} 11... dxc3 {[%clk 0:01:51.1]} 12. hxg4 {[%clk 0:01:42.3]}
12... cxb2 {[%clk 0:01:49.3]} 13. Rb1 {[%clk 0:01:41.6]} 13... Bc3+ {[%clk
0:01:44.6]} 14. Bd2 {[%clk 0:01:37]} 14... Qe3+ {[%clk 0:01:34.6]} 15. Be2
{[%clk 0:01:32]} 15... Bxg4 {[%clk 0:01:28.8]} 16. Bxc3 {[%clk 0:01:24.5]} 16...
Qxc3+ {[%clk 0:01:25.9]} 17. Kf2 {[%clk 0:01:25]} 17... Bxf3 {[%clk 0:01:19.1]}
18. gxf3 {[%clk 0:01:10.6]} 18... Nd7 {[%clk 0:01:18.6]} 19. Bd3 {[%clk
0:01:00.8]} 19... Ne5 {[%clk 0:01:14.5]} 20. Qe2 {[%clk 0:00:57.4]} 20... O-O-O
{[%clk 0:01:08.7]} 21. Rhd1 {[%clk 0:00:56.8]} 21... g5 {[%clk 0:01:02.6]} 22.
Qe3 {[%clk 0:00:49.3]} 22... Qd4 {[%clk 0:00:56.9]} 23. Qxd4 {[%clk 0:00:45.6]}
23... Rxd4 {[%clk 0:00:57.8]} 24. Rxb2 {[%clk 0:00:46.1]} 24... Rhd8 {[%clk
0:00:50.5]} 25. Rb3 {[%clk 0:00:42.7]} 25... c5 {[%clk 0:00:46.7]} 26. Rc3
{[%clk 0:00:42.7]} 26... c4 {[%clk 0:00:39.6]} 27. Rh1 {[%clk 0:00:38.7]} 27...
Kb8 {[%clk 0:00:27.5]} 28. Be2 {[%clk 0:00:36.9]} 28... f6 {[%clk 0:00:13.8]}
29. Rxh7 {[%clk 0:00:36.6]} 29... R4d7 {[%clk 0:00:13.1]} 30. Rh6 {[%clk
0:00:34.7]} 30... Rd6 {[%clk 0:00:12.9]} 31. Ke3 {[%clk 0:00:33.9]} 31... b5
{[%clk 0:00:12.2]} 32. Rh1 {[%clk 0:00:29.6]} 32... a6 {[%clk 0:00:12.2]} 33.
Rb1 {[%clk 0:00:29.7]} 33... Ka7 {[%clk 0:00:12.5]} 34. a4 {[%clk 0:00:28.1]}
34... Rb6 {[%clk 0:00:11.6]} 35. axb5 {[%clk 0:00:25]} 35... axb5 {[%clk
0:00:11]} 36. Ra1+ {[%clk 0:00:22]} 36... Kb7 {[%clk 0:00:11.3]} 37. Rca3 {[%clk
0:00:21.3]} 37... Kc6 {[%clk 0:00:10.7]} 38. Ra7 {[%clk 0:00:20.1]} 38... b4
{[%clk 0:00:10]} 39. R1a5 {[%clk 0:00:16.9]} 39... Rd7 {[%clk 0:00:09.7]} 40.
Ra8 {[%clk 0:00:16.7]} 40... b3 {[%clk 0:00:08.6]} 41. cxb3 {[%clk 0:00:17]}
41... Rxb3+ {[%clk 0:00:09]} 42. Kf2 {[%clk 0:00:16.3]} 42... Rb2 {[%clk
0:00:08.5]} 43. R8a6+ {[%clk 0:00:15.7]} 43... Kb7 {[%clk 0:00:07.9]} 44. Ra7+
{[%clk 0:00:15.8]} 44... Kc6 {[%clk 0:00:07.9]} 45. R7a6+ {[%clk 0:00:15.8]}
45... Rb6 {[%clk 0:00:08.3]} 46. Ra8 {[%clk 0:00:15.7]} 46... Rc7 {[%clk
0:00:07.3]} 47. Ra3 {[%clk 0:00:15.6]} 47... Kc5 {[%clk 0:00:07]} 48. Ke3 {[%clk
0:00:13.3]} 48... Rb3+ {[%clk 0:00:06.7]} 49. Kd2 {[%clk 0:00:13.1]} 49... Rxa3
{[%clk 0:00:05.5]} 50. Rxa3 {[%clk 0:00:14]} 50... Kb4 {[%clk 0:00:06]} 51. Ra1
{[%clk 0:00:14.2]} 51... c3+ {[%clk 0:00:05]} 52. Ke3 {[%clk 0:00:14.4]} 52...
c2 {[%clk 0:00:04.6]} 53. Kd2 {[%clk 0:00:14.4]} 53... Kb3 {[%clk 0:00:05.5]}
54. Kc1 {[%clk 0:00:13.6]} 54... Rh7 {[%clk 0:00:03.3]} 55. Bd1 {[%clk
0:00:12.5]} 55... Rh1 {[%clk 0:00:02.1]} 56. Kd2 {[%clk 0:00:12.3]} 1-0

[Event "*** Titled Tuesday Blitz"]
[Site "Chess.com"]
[Date "2021.04.27"]
[Round "5"]
[White "Valeron87"]
[Black "Nozdrachev_Leonid"]
[Result "0-1"]
[WhiteElo "2415"]
[BlackElo "2613"]
[TimeControl "180+1"]
[EndTime "10:57:22 PDT"]
[Termination "Nozdrachev_Leonid won on time"]

1. e4 {[%clk 0:03:00.9]} 1... d6 {[%clk 0:02:56.7]} 2. d4 {[%clk 0:02:59.7]}
2... Nf6 {[%clk 0:02:56.1]} 3. Nc3 {[%clk 0:02:59]} 3... e5 {[%clk 0:02:55.8]}
4. Nf3 {[%clk 0:02:57]} 4... Nbd7 {[%clk 0:02:54.4]} 5. Bc4 {[%clk 0:02:56.5]}
5... Be7 {[%clk 0:02:55]} 6. a4 {[%clk 0:02:54.5]} 6... O-O {[%clk 0:02:54.6]}
7. O-O {[%clk 0:02:54.3]} 7... c6 {[%clk 0:02:54.2]} 8. a5 {[%clk 0:02:51]} 8...
Qc7 {[%clk 0:02:48.9]} 9. Re1 {[%clk 0:02:42.4]} 9... h6 {[%clk 0:02:45]} 10.
Ba2 {[%clk 0:02:35.4]} 10... Re8 {[%clk 0:02:43]} 11. Nh4 {[%clk 0:02:02.6]}
11... exd4 {[%clk 0:02:35.1]} 12. Qxd4 {[%clk 0:02:01.7]} 12... Nc5 {[%clk
0:02:30.3]} 13. Ng6 {[%clk 0:01:40.8]} 13... Ne6 {[%clk 0:02:19.8]} 14. Nxe7+
{[%clk 0:01:39.2]} 14... Qxe7 {[%clk 0:02:19.7]} 15. Qc4 {[%clk 0:01:26.8]}
15... Ng5 {[%clk 0:02:05.1]} 16. Bf4 {[%clk 0:01:01.9]} 16... d5 {[%clk
0:02:01.5]} 17. Qd4 {[%clk 0:00:45.9]} 17... dxe4 {[%clk 0:01:54.4]} 18. Bd6
{[%clk 0:00:38.4]} 18... Qd8 {[%clk 0:01:50.1]} 19. Rad1 {[%clk 0:00:36.3]}
19... Be6 {[%clk 0:01:49]} 20. Bxe6 {[%clk 0:00:33.9]} 20... Rxe6 {[%clk
0:01:43.9]} 21. Qb4 {[%clk 0:00:33.3]} 21... Qe8 {[%clk 0:01:27.6]} 22. h4
{[%clk 0:00:32.7]} 22... Ngh7 {[%clk 0:01:24.2]} 23. Qxb7 {[%clk 0:00:29.7]}
23... e3 {[%clk 0:01:16.9]} 24. Bc5 {[%clk 0:00:20.9]} 24... Ng4 {[%clk
0:01:02.4]} 25. fxe3 {[%clk 0:00:17.7]} 25... Rg6 {[%clk 0:00:53.1]} 26. Rd7
{[%clk 0:00:13.4]} 26... Nf8 {[%clk 0:00:48.4]} 27. Rd2 {[%clk 0:00:13.1]} 27...
Qe5 {[%clk 0:00:42.4]} 28. Bd6 {[%clk 0:00:12.5]} 28... Qe8 {[%clk 0:00:37.7]}
29. Qc7 {[%clk 0:00:11.6]} 29... a6 {[%clk 0:00:34.6]} 30. Qe7 {[%clk
0:00:11.4]} 30... Qc8 {[%clk 0:00:33]} 31. Rf1 {[%clk 0:00:10.5]} 31... Rf6
{[%clk 0:00:28.4]} 32. Rxf6 {[%clk 0:00:09]} 32... Nxf6 {[%clk 0:00:29.3]} 33.
Qxf8+ {[%clk 0:00:09.1]} 33... Qxf8 {[%clk 0:00:28.4]} 34. Bxf8 {[%clk 0:00:10]}
34... Kxf8 {[%clk 0:00:27.9]} 35. Rd6 {[%clk 0:00:10.7]} 35... Rc8 {[%clk
0:00:25.4]} 36. Na4 {[%clk 0:00:10.6]} 36... Ke7 {[%clk 0:00:25]} 37. Rd4 {[%clk
0:00:09.8]} 37... c5 {[%clk 0:00:22.8]} 38. Rc4 {[%clk 0:00:09]} 38... Nd7
{[%clk 0:00:22.2]} 39. e4 {[%clk 0:00:08]} 39... Kd6 {[%clk 0:00:21.8]} 40. Kf2
{[%clk 0:00:06.6]} 40... Ne5 {[%clk 0:00:19.9]} 41. Rc3 {[%clk 0:00:06.8]} 41...
c4 {[%clk 0:00:20.1]} 42. Nb6 {[%clk 0:00:06.8]} 42... Rc5 {[%clk 0:00:18.8]}
43. b3 {[%clk 0:00:05.3]} 43... cxb3 {[%clk 0:00:16.5]} 44. Rxc5 {[%clk
0:00:04.8]} 44... Kxc5 {[%clk 0:00:09.8]} 45. cxb3 {[%clk 0:00:05.7]} 45... Kb4
{[%clk 0:00:06.9]} 46. Ke3 {[%clk 0:00:06.3]} 46... Kxa5 {[%clk 0:00:06.6]} 47.
Nd5 {[%clk 0:00:06.8]} 47... Kb5 {[%clk 0:00:05.9]} 48. Kd4 {[%clk 0:00:06.3]}
48... f6 {[%clk 0:00:06.4]} 49. g3 {[%clk 0:00:05.7]} 49... Nc6+ {[%clk
0:00:06.1]} 50. Kc3 {[%clk 0:00:04.6]} 50... Ne5 {[%clk 0:00:07]} 51. h5 {[%clk
0:00:04.3]} 51... Kc5 {[%clk 0:00:06.9]} 52. Nc7 {[%clk 0:00:04.3]} 52... Kd6
{[%clk 0:00:04.6]} 53. Nxa6 {[%clk 0:00:04.3]} 53... Nc6 {[%clk 0:00:03.6]} 54.
Nb4 {[%clk 0:00:04.1]} 54... Na5 {[%clk 0:00:02.4]} 55. Nd5 {[%clk 0:00:04]}
55... Ke5 {[%clk 0:00:02.3]} 56. b4 {[%clk 0:00:03.3]} 56... Nc6 {[%clk
0:00:01.1]} 57. b5 {[%clk 0:00:03.2]} 57... Nd4 {[%clk 0:00:02]} 58. b6 {[%clk
0:00:02.8]} 58... Nb5+ {[%clk 0:00:02.1]} 59. Kb4 {[%clk 0:00:01.3]} 59... Nd6
{[%clk 0:00:03]} 0-1

[Event "*** Titled Tuesday Blitz"]
[Site "Chess.com"]
[Date "2021.04.27"]
[Round "5"]
[White "starplatinum2030"]
[Black "profofchess"]
[Result "0-1"]
[WhiteElo "2291"]
[BlackElo "2481"]
[TimeControl "180+1"]
[EndTime "10:57:22 PDT"]
[Termination "profofchess won by resignation"]

1. d4 {[%clk 0:02:40.2]} 1... Nf6 {[%clk 0:02:59.5]} 2. Nf3 {[%clk 0:02:40.1]}
2... e6 {[%clk 0:03:00.2]} 3. Nbd2 {[%clk 0:02:38.8]} 3... c5 {[%clk 0:02:57.6]}
4. e3 {[%clk 0:02:35.2]} 4... b6 {[%clk 0:02:56.9]} 5. Be2 {[%clk 0:02:34.6]}
5... cxd4 {[%clk 0:02:56.1]} 6. exd4 {[%clk 0:02:34.2]} 6... Bb7 {[%clk
0:02:56.3]} 7. O-O {[%clk 0:02:34.5]} 7... Be7 {[%clk 0:02:54.9]} 8. c3 {[%clk
0:02:34.8]} 8... O-O {[%clk 0:02:53.5]} 9. Re1 {[%clk 0:02:34.8]} 9... d6 {[%clk
0:02:47]} 10. Nf1 {[%clk 0:02:34.1]} 10... Nbd7 {[%clk 0:02:46.9]} 11. Bf4
{[%clk 0:02:30.3]} 11... Re8 {[%clk 0:02:45.3]} 12. Bd3 {[%clk 0:02:25.1]} 12...
a6 {[%clk 0:02:42.3]} 13. a4 {[%clk 0:02:21.2]} 13... Nf8 {[%clk 0:02:41.9]} 14.
h3 {[%clk 0:02:17.1]} 14... Ng6 {[%clk 0:02:41.9]} 15. Bh2 {[%clk 0:02:13]}
15... Nd5 {[%clk 0:02:32.6]} 16. Ne3 {[%clk 0:02:11]} 16... Ndf4 {[%clk
0:02:32.6]} 17. Bf1 {[%clk 0:02:07.8]} 17... Qc7 {[%clk 0:02:28.7]} 18. Bxf4
{[%clk 0:02:07.1]} 18... Nxf4 {[%clk 0:02:28.2]} 19. g3 {[%clk 0:02:07.3]} 19...
Ng6 {[%clk 0:02:27.4]} 20. Bg2 {[%clk 0:02:07.5]} 20... b5 {[%clk 0:02:18.9]}
21. Nd2 {[%clk 0:02:02.9]} 21... Bxg2 {[%clk 0:02:13.4]} 22. Kxg2 {[%clk
0:02:03.8]} 22... b4 {[%clk 0:02:12.8]} 23. c4 {[%clk 0:02:01.7]} 23... Bf6
{[%clk 0:01:56.2]} 24. Ne4 {[%clk 0:01:54.8]} 24... Qb7 {[%clk 0:01:53.6]} 25.
f3 {[%clk 0:01:06.7]} 25... Be7 {[%clk 0:01:52.9]} 26. b3 {[%clk 0:01:04.8]}
26... f5 {[%clk 0:01:51.8]} 27. Nf2 {[%clk 0:01:02.2]} 27... f4 {[%clk
0:01:49.5]} 28. Nf1 {[%clk 0:00:55.9]} 28... fxg3 {[%clk 0:01:17.3]} 29. Ne4
{[%clk 0:00:55.7]} 29... d5 {[%clk 0:01:05.2]} 30. cxd5 {[%clk 0:00:51.5]} 30...
Qxd5 {[%clk 0:01:01.5]} 31. Nfxg3 {[%clk 0:00:49]} 31... Rad8 {[%clk 0:00:55.6]}
32. Ne2 {[%clk 0:00:43.1]} 32... Nh4+ {[%clk 0:00:52.7]} 33. Kf2 {[%clk
0:00:31.9]} 33... Rf8 {[%clk 0:00:52.8]} 34. Ng1 {[%clk 0:00:31.5]} 34... e5
{[%clk 0:00:41.1]} 35. Qd3 {[%clk 0:00:13.9]} 35... exd4 {[%clk 0:00:37.7]} 36.
Ng3 {[%clk 0:00:12.7]} 36... Bg5 {[%clk 0:00:18.2]} 37. Qc4 {[%clk 0:00:07.7]}
37... Be3+ {[%clk 0:00:17.8]} 38. Ke2 {[%clk 0:00:05.6]} 38... Qxc4+ {[%clk
0:00:17.5]} 39. bxc4 {[%clk 0:00:05.9]} 39... Bxg1 {[%clk 0:00:16.3]} 40. Rxg1
{[%clk 0:00:05.6]} 40... d3+ {[%clk 0:00:16.7]} 41. Ke3 {[%clk 0:00:05.5]} 41...
Rxf3+ {[%clk 0:00:16]} 42. Kd2 {[%clk 0:00:05.8]} 42... Rf2+ {[%clk 0:00:12.8]}
43. Ke3 {[%clk 0:00:06.1]} 43... Rc2 {[%clk 0:00:12.9]} 44. Ne4 {[%clk
0:00:05.6]} 44... Nf5+ {[%clk 0:00:11.6]} 45. Kf4 {[%clk 0:00:05.5]} 45... Nd4
{[%clk 0:00:07.6]} 46. Ke5 {[%clk 0:00:05.2]} 46... Nf3+ {[%clk 0:00:07.3]} 47.
Ke6 {[%clk 0:00:04.3]} 47... Nxg1 {[%clk 0:00:08.2]} 48. Rxg1 {[%clk 0:00:04.6]}
48... Re8+ {[%clk 0:00:05.3]} 49. Kd5 {[%clk 0:00:04.3]} 49... Kh8 {[%clk
0:00:02]} 50. Rd1 {[%clk 0:00:03.6]} 50... Rd8+ {[%clk 0:00:02.5]} 51. Nd6
{[%clk 0:00:03.7]} 51... d2 {[%clk 0:00:03]} 52. c5 {[%clk 0:00:04.1]} 52... b3
{[%clk 0:00:03.4]} 53. c6 {[%clk 0:00:04.1]} 53... b2 {[%clk 0:00:03.4]} 54. c7
{[%clk 0:00:03.1]} 54... Rxd6+ {[%clk 0:00:02.4]} 55. Kxd6 {[%clk 0:00:02.3]}
55... h6 {[%clk 0:00:02.7]} 56. Rxd2 {[%clk 0:00:02.5]} 56... Rxd2+ {[%clk
0:00:02.6]} 57. Ke7 {[%clk 0:00:03.4]} 57... Rc2 {[%clk 0:00:03.5]} 58. c8=Q+
{[%clk 0:00:04.1]} 58... Rxc8 {[%clk 0:00:03.4]} 59. Kd7 {[%clk 0:00:05]} 59...
Rc2 {[%clk 0:00:03.7]} 0-1

[Event "*** Titled Tuesday Blitz"]
[Site "Chess.com"]
[Date "2021.04.27"]
[Round "5"]
[White "CraiggoryC"]
[Black "karwowskikacper"]
[Result "1-0"]
[WhiteElo "2229"]
[BlackElo "2409"]
[TimeControl "180+1"]
[EndTime "10:57:23 PDT"]
[Termination "CraiggoryC won by checkmate"]

1. e4 {[%clk 0:03:00.9]} 1... g6 {[%clk 0:03:00.9]} 2. d4 {[%clk 0:03:00.7]}
2... Bg7 {[%clk 0:03:01.8]} 3. Nc3 {[%clk 0:03:01]} 3... c5 {[%clk 0:03:02.5]}
4. Nf3 {[%clk 0:02:59.6]} 4... cxd4 {[%clk 0:03:02.6]} 5. Nxd4 {[%clk
0:02:59.8]} 5... Nc6 {[%clk 0:03:03.4]} 6. Be3 {[%clk 0:02:59.9]} 6... Nf6
{[%clk 0:03:04]} 7. Bc4 {[%clk 0:03:00.4]} 7... O-O {[%clk 0:03:04.1]} 8. Bb3
{[%clk 0:03:00.8]} 8... a5 {[%clk 0:02:53.1]} 9. O-O {[%clk 0:02:56.4]} 9... a4
{[%clk 0:02:52.8]} 10. Nxa4 {[%clk 0:02:56.6]} 10... Nxe4 {[%clk 0:02:52.4]} 11.
Nb5 {[%clk 0:02:56.1]} 11... Ra6 {[%clk 0:02:47.9]} 12. c4 {[%clk 0:02:14.5]}
12... d6 {[%clk 0:02:45.9]} 13. c5 {[%clk 0:02:09]} 13... dxc5 {[%clk 0:02:29]}
14. Nxc5 {[%clk 0:02:05.5]} 14... Nxc5 {[%clk 0:02:27.5]} 15. Bxc5 {[%clk
0:02:05]} 15... Bxb2 {[%clk 0:02:27.6]} 16. Qxd8 {[%clk 0:01:54.3]} 16... Rxd8
{[%clk 0:02:26.9]} 17. Rad1 {[%clk 0:01:54.9]} 17... Rxd1 {[%clk 0:02:06.7]} 18.
Rxd1 {[%clk 0:01:54.2]} 18... Bg4 {[%clk 0:02:07.3]} 19. f3 {[%clk 0:01:41.8]}
19... Be6 {[%clk 0:01:52.1]} 20. Bxe6 {[%clk 0:01:31.9]} 20... fxe6 {[%clk
0:01:53]} 21. Rd7 {[%clk 0:01:31.7]} 21... Rxa2 {[%clk 0:01:25.6]} 22. Rxb7
{[%clk 0:01:22.4]} 22... Bf6 {[%clk 0:01:19]} 23. Rc7 {[%clk 0:01:11.2]} 23...
Ne5 {[%clk 0:01:02.8]} 24. Bxe7 {[%clk 0:01:03.2]} 24... Nd3 {[%clk 0:01:01.5]}
25. Bxf6 {[%clk 0:00:58.1]} 25... Rd2 {[%clk 0:00:23.9]} 26. h4 {[%clk
0:00:21.5]} 26... Nf4 {[%clk 0:00:20.2]} 27. Bg5 {[%clk 0:00:18.1]} 27... Rxg2+
{[%clk 0:00:19.9]} 28. Kf1 {[%clk 0:00:18.2]} 28... Rb2 {[%clk 0:00:20.1]} 29.
Rc8+ {[%clk 0:00:14.8]} 29... Kg7 {[%clk 0:00:19.5]} 30. Rc7+ {[%clk 0:00:12.3]}
30... Kg8 {[%clk 0:00:19.4]} 31. Bxf4 {[%clk 0:00:10.7]} 31... Rxb5 {[%clk
0:00:18.1]} 32. Bg5 {[%clk 0:00:10.8]} 32... Rf5 {[%clk 0:00:17.2]} 33. Kg2
{[%clk 0:00:10.8]} 33... e5 {[%clk 0:00:15.8]} 34. Kg3 {[%clk 0:00:11]} 34...
Kf8 {[%clk 0:00:15.4]} 35. Kg4 {[%clk 0:00:10.8]} 35... h5+ {[%clk 0:00:12.7]}
36. Kg3 {[%clk 0:00:10.5]} 36... Kg8 {[%clk 0:00:13.6]} 37. Bh6 {[%clk
0:00:09.7]} 37... Rf6 {[%clk 0:00:11.3]} 38. Rg7+ {[%clk 0:00:09.1]} 38... Kh8
{[%clk 0:00:11.5]} 39. Re7 {[%clk 0:00:09.4]} 39... Rf5 {[%clk 0:00:10.4]} 40.
Bg7+ {[%clk 0:00:09.6]} 40... Kg8 {[%clk 0:00:10]} 41. Bxe5 {[%clk 0:00:10.2]}
41... g5 {[%clk 0:00:09.5]} 42. Rg7+ {[%clk 0:00:08.6]} 42... Kf8 {[%clk
0:00:09.4]} 43. Rxg5 {[%clk 0:00:09.5]} 43... Rxg5+ {[%clk 0:00:08]} 44. hxg5
{[%clk 0:00:09.4]} 44... Kf7 {[%clk 0:00:08.9]} 45. Kh4 {[%clk 0:00:09.7]} 45...
Kg6 {[%clk 0:00:09.2]} 46. Bf4 {[%clk 0:00:09.8]} 46... Kf5 {[%clk 0:00:09.1]}
47. Kxh5 {[%clk 0:00:10.4]} 47... Ke6 {[%clk 0:00:09.6]} 48. g6 {[%clk
0:00:10.8]} 48... Kf6 {[%clk 0:00:10.2]} 49. Kh6 {[%clk 0:00:11.3]} 49... Ke6
{[%clk 0:00:10.4]} 50. Kh7 {[%clk 0:00:11.8]} 50... Ke7 {[%clk 0:00:10.3]} 51.
g7 {[%clk 0:00:12.4]} 51... Kf6 {[%clk 0:00:10.8]} 52. Bc1 {[%clk 0:00:12.1]}
52... Ke5 {[%clk 0:00:09.8]} 53. g8=Q {[%clk 0:00:12.2]} 53... Kf6 {[%clk
0:00:10.7]} 54. Qg6+ {[%clk 0:00:12.1]} 54... Ke5 {[%clk 0:00:11]} 55. Qe4+
{[%clk 0:00:12.1]} 55... Kf6 {[%clk 0:00:11.1]} 56. f4 {[%clk 0:00:11.2]} 56...
Kf7 {[%clk 0:00:11.1]} 57. f5 {[%clk 0:00:10.9]} 57... Kf6 {[%clk 0:00:10.2]}
58. Bg5+ {[%clk 0:00:10.5]} 58... Kxg5 {[%clk 0:00:09.4]} 59. Qe6 {[%clk
0:00:09.2]} 59... Kf4 {[%clk 0:00:08.4]} 60. f6 {[%clk 0:00:08.6]} 60... Kg5
{[%clk 0:00:09.3]} 61. f7 {[%clk 0:00:08.3]} 61... Kh5 {[%clk 0:00:08.8]} 62.
f8=Q {[%clk 0:00:07.7]} 62... Kh4 {[%clk 0:00:09.3]} 63. Qfh6+ {[%clk
0:00:07.6]} 63... Kg3 {[%clk 0:00:08.4]} 64. Qeg6+ {[%clk 0:00:07.4]} 64... Kf3
{[%clk 0:00:08.2]} 65. Qf7+ {[%clk 0:00:06.6]} 65... Ke4 {[%clk 0:00:07.9]} 66.
Qhe6+ {[%clk 0:00:06.6]} 66... Kd4 {[%clk 0:00:08]} 67. Qfd7+ {[%clk 0:00:06.8]}
67... Kc3 {[%clk 0:00:08.9]} 68. Qec6+ {[%clk 0:00:07]} 68... Kb4 {[%clk
0:00:09.8]} 69. Qdb7+ {[%clk 0:00:07.5]} 69... Ka3 {[%clk 0:00:10.7]} 70. Qca6#
{[%clk 0:00:07.9]} 1-0